Workbook

Sheet Conversion
A1: Equivalent WWR & Combinations for Grade 60 Rebar Schedules | H1: (Version 4 - 1/1/13)
B3: Conversion based on the requirements on Index 200 & 201
B4: - Equivalent Area for Strength
B5: - Equivalent Spacing for Increased Service Stress
B7: Original Reinf. Steel Area = | E7: 0.2 | F7: in^2/ft | G7: (Grade 60)
B8: Yield Strength of Reinforcing = | E8: 60 | F8: ksi
B9: Minimum Bar Spacing = | E9: 6 | F9: in.
A11: 1.0 | B11: Basic WWR Configurations:
B13: DWWR Equiv. Area (Gr. 70) = | E13: =+E7*Fyo/70 -> 0.1714285714 | F13: in^2/ft | H13: Equiv. Min. Wire Sp. = | I13: =+E9*(Fyo/70)^2 -> 4.408163265 | J13: in.
B14: SWWR Equiv. Area (Gr. 65) = | E14: =+E7*Fyo/65 -> 0.1846153846 | F14: in^2/ft | H14: Equiv. Min. Wire Sp. = | I14: =+E9*(Fyo/65)^2 -> 5.112426036 | J14: in.
A17: 2.0 | B17: Combination WWR & Supplemental Deformed Bars:
B19: Base WWR Grade = | E19: 65 | F19: ksi | G19: (D=70 ksi; W=65 ksi)
B20: Base WWR Wire Size = | E20: 0 | F20: 100* in^2
B21: Base WWR Wire Spacing = | E21: 3 | F21: in.
C22: Gross Area = | E22: =+E20/100*12/E21 -> 0 | F22: in^2/ft
B24: Supplemental Bar Grade = | E24: 60 | F24: ksi | G24: (ASTM A 416 - Grade 60)
B25: Supplemental Bar Area = | E25: 0.2 | F25: in^2 | G25: (#3 = 0.11; #4 = 0.20; #5 = 0.31)
B26: Supplemental Bar Spacing = | E26: 10 | F26: in. | G26: (Not greater than 2 x Minimum Design Bar Spacing)
C27: Gross Area = | E27: =+E25*12/E26 -> 0.24 | F27: in^2/ft
B29: Total Gross Area = | E29: =+E22+E27 -> 0.24 | F29: in^2/ft
B30: Total Equivalent Area = | E30: =+E22*E19/Fyo+E27*E24/Fyo -> 0.24 | F30: in^2/ft | G30: =+IF(E30<E7,"NO GOOD (Stress)", "OK (Stress)") -> OK (Stress)
B31: Equivalent Stress Ratio = | E31: =+E7/E29 -> 0.8333333333 | G31: (Design/Provided)
B33: Average Bar/Wire Sp. = | E33: =+E22/E29*E21+E27/E29*E26 -> 10 | F33: in
B34: Equivalent Bar Spacing Req'd = | E34: =+E9/(E31)^2 -> 8.64 | F34: in | G34: =+IF(E33>E34,"NO GOOD (Spacing)", "OK (Spacing)") -> NO GOOD (Spacing)
C36: Summary Check = | E36: =+IF(E30<E7,"NO GOOD",+IF(E33>E34,"NO GOOD","OK")) -> NO GOOD

Sheet Reinf. Schedules
H2: DESIGN INDEX NO. 201 REINFORCING SCHEDULE
B4: NEW | C4: AREA | D4: BAR | F4: SCHEDULE | G4: SCHEDULE | H4: GRADE | J4: 60 | K4: KSI BAR | O4: GRADE | Q4: 40 | R4: KSI BAR | V4: GRADE | X4: 65 | Y4: KSI WWF
B5: SCHEDULE | C5: (in^2/ft) | D5: DIA. (in.)
B6: A | C6: 0.2 | D6: 0.5 | F6: OLD | G6: NEW | H6: BAR SIZE & | K6: SPACING | M6: AREA | O6: BAR SIZE & | R6: SPACING | T6: MIN.AREA | X6: SPACING | Z6: STYLE DESIGNATION | AE6: MIN. AREA
B7: B | C7: 0.24 | D7: 0.5 | F7: (2004) | G7: -2006 | K7: (in) | M7: (in^2) | R7: (in) | T7: (in^2) | X7: (in) | Z7: (WIRE SIZE) | AE7: (in^2)
B8: C | C8: 0.37 | D8: 0.5
B9: D | C9: 0.53 | D9: 0.625 | F9: =VLOOKUP(M9,OLDSCHTABLE,2,0) -> A | G9: A | H9: # | I9: 3 | J9: @ | K9: =VLOOKUP(I9,BARtable,2)/M9*12 -> 6.6 | L9: Ctrs. | M9: =+VLOOKUP(G9,SCHEDULETABLE,2,0) -> 0.2 | O9: # | P9: =+I9 -> 3 | Q9: @ | R9: =VLOOKUP(P9,BARtable,2)/T9*12 -> 4.4 | S9: Ctrs. | T9: =+M9/$Q$4*60 -> 0.3 | V9: =+X9 -> 3 | W9: X | X9: 3 | Y9: - | Z9: W | AA9: =+X9*AE9/12*100 -> 4.615384615 | AB9: X | AC9: W | AD9: =+AA9 -> 4.615384615 | AE9: =+M9/$X$4*60 -> 0.1846153846
B10: E | C10: 0.73 | D10: 0.625 | H10: # | I10: =+I9+1 -> 4 | J10: @ | K10: =VLOOKUP(I10,BARtable,2)/M10*12 -> 12 | L10: Ctrs | M10: =+M9 -> 0.2 | O10: # | P10: =+P9+1 -> 4 | Q10: @ | R10: =VLOOKUP(P10,BARtable,2)/T10*12 -> 8 | S10: Ctrs | T10: =+M10/$Q$4*60 -> 0.3 | V10: =+X10 -> 4 | W10: X | X10: 4 | Y10: - | Z10: W | AA10: =+X10*AE10/12*100 -> 6.153846154 | AB10: X | AC10: W | AD10: =+AA10 -> 6.153846154 | AE10: =+M10/$X$4*60 -> 0.1846153846
B11: F | C11: 1.06 | D11: 0.75 | H11: # | I11: =+I10+1 -> 5 | J11: @ | K11: =VLOOKUP(I11,BARtable,2)/M11*12 -> 18.6 | L11: Ctrs | M11: =+M10 -> 0.2 | O11: # | P11: =+P10+1 -> 5 | Q11: @ | R11: =VLOOKUP(P11,BARtable,2)/T11*12 -> 12.4 | S11: Ctrs | T11: =+M11/$Q$4*60 -> 0.3 | V11: =+X11 -> 6 | W11: X | X11: 6 | Y11: - | Z11: W | AA11: =+X11*AE11/12*100 -> 9.230769231 | AB11: X | AC11: W | AD11: =+AA11 -> 9.230769231 | AE11: =+M11/$X$4*60 -> 0.1846153846
B12: G | C12: 1.46 | D12: 0.875 | Y12: -
B13: H | C13: 1.75 | D13: 0.875 | F13: =VLOOKUP(M13,OLDSCHTABLE,2,0) -> B | G13: B | H13: # | I13: 3 | J13: @ | K13: =VLOOKUP(I13,BARtable,2)/M13*12 -> 5.5 | L13: Ctrs. | M13: =+VLOOKUP(G13,SCHEDULETABLE,2,0) -> 0.24 | O13: # | P13: =+I13 -> 3 | Q13: @ | R13: =VLOOKUP(P13,BARtable,2)/T13*12 -> 3.666666667 | S13: Ctrs. | T13: =+M13/$Q$4*60 -> 0.36 | V13: =+X13 -> 3 | W13: X | X13: 3 | Y13: - | Z13: W | AA13: =+X13*AE13/12*100 -> 5.538461538 | AB13: X | AC13: W | AD13: =+AA13 -> 5.538461538 | AE13: =+M13/$X$4*60 -> 0.2215384615
B14: S1 | C14: 0.267 | D14: 0.5 | H14: # | I14: =+I13+1 -> 4 | J14: @ | K14: =VLOOKUP(I14,BARtable,2)/M14*12 -> 10 | L14: Ctrs | M14: =+M13 -> 0.24 | O14: # | P14: =+P13+1 -> 4 | Q14: @ | R14: =VLOOKUP(P14,BARtable,2)/T14*12 -> 6.666666667 | S14: Ctrs | T14: =+M14/$Q$4*60 -> 0.36 | V14: =+X14 -> 4 | W14: X | X14: 4 | Y14: - | Z14: W | AA14: =+X14*AE14/12*100 -> 7.384615385 | AB14: X | AC14: W | AD14: =+AA14 -> 7.384615385 | AE14: =+M14/$X$4*60 -> 0.2215384615
B15: S2 | C15: 1.24 | D15: 0.875 | H15: # | I15: =+I14+1 -> 5 | J15: @ | K15: =VLOOKUP(I15,BARtable,2)/M15*12 -> 15.5 | L15: Ctrs | M15: =+M14 -> 0.24 | O15: # | P15: =+P14+1 -> 5 | Q15: @ | R15: =VLOOKUP(P15,BARtable,2)/T15*12 -> 10.33333333 | S15: Ctrs | T15: =+M15/$Q$4*60 -> 0.36 | V15: =+X15 -> 6 | W15: X | X15: 6 | Y15: - | Z15: W | AA15: =+X15*AE15/12*100 -> 11.07692308 | AB15: X | AC15: W | AD15: =+AA15 -> 11.07692308 | AE15: =+M15/$X$4*60 -> 0.2215384615
Y16: -
F17: =VLOOKUP(M17,OLDSCHTABLE,2,0) ->  | G17: S1 | H17: # | I17: 3 | J17: @ | K17: =VLOOKUP(I17,BARtable,2)/M17*12 -> 4.943820225 | L17: Ctrs. | M17: =+VLOOKUP(G17,SCHEDULETABLE,2,0) -> 0.267 | O17: # | P17: =+I17 -> 3 | Q17: @ | R17: =VLOOKUP(P17,BARtable,2)/T17*12 -> 3.29588015 | S17: Ctrs. | T17: =+M17/$Q$4*60 -> 0.4005 | V17: =+X17 -> 3 | W17: X | X17: 3 | Y17: - | Z17: W | AA17: =+X17*AE17/12*100 -> 6.161538462 | AB17: X | AC17: W | AD17: =+AA17 -> 6.161538462 | AE17: =+M17/$X$4*60 -> 0.2464615385
H18: # | I18: =+I17+1 -> 4 | J18: @ | K18: =VLOOKUP(I18,BARtable,2)/M18*12 -> 8.988764045 | L18: Ctrs | M18: =+M17 -> 0.267 | O18: # | P18: =+P17+1 -> 4 | Q18: @ | R18: =VLOOKUP(P18,BARtable,2)/T18*12 -> 5.992509363 | S18: Ctrs | T18: =+M18/$Q$4*60 -> 0.4005 | V18: =+X18 -> 4 | W18: X | X18: 4 | Y18: - | Z18: W | AA18: =+X18*AE18/12*100 -> 8.215384615 | AB18: X | AC18: W | AD18: =+AA18 -> 8.215384615 | AE18: =+M18/$X$4*60 -> 0.2464615385
B19: BAR # | C19: AREA | H19: # | I19: =+I18+1 -> 5 | J19: @ | K19: =VLOOKUP(I19,BARtable,2)/M19*12 -> 13.93258427 | L19: Ctrs | M19: =+M18 -> 0.267 | O19: # | P19: =+P18+1 -> 5 | Q19: @ | R19: =VLOOKUP(P19,BARtable,2)/T19*12 -> 9.288389513 | S19: Ctrs | T19: =+M19/$Q$4*60 -> 0.4005 | V19: =+X19 -> 6 | W19: X | X19: 6 | Y19: - | Z19: W | AA19: =+X19*AE19/12*100 -> 12.32307692 | AB19: X | AC19: W | AD19: =+AA19 -> 12.32307692 | AE19: =+M19/$X$4*60 -> 0.2464615385
B20: 3 | C20: 0.11 | Y20: -
B21: 4 | C21: 0.2 | F21: =VLOOKUP(M21,OLDSCHTABLE,2,0) -> C | G21: C | H21: # | I21: 3 | J21: @ | K21: =VLOOKUP(I21,BARtable,2)/M21*12 -> 3.567567568 | L21: Ctrs. | M21: =+VLOOKUP(G21,SCHEDULETABLE,2,0) -> 0.37 | O21: # | P21: =+I21 -> 3 | Q21: @ | R21: =VLOOKUP(P21,BARtable,2)/T21*12 -> 2.378378378 | S21: Ctrs. | T21: =+M21/$Q$4*60 -> 0.555 | V21: =+X21 -> 3 | W21: X | X21: 3 | Y21: - | Z21: W | AA21: =+X21*AE21/12*100 -> 8.538461538 | AB21: X | AC21: W | AD21: =+AA21 -> 8.538461538 | AE21: =+M21/$X$4*60 -> 0.3415384615
B22: 5 | C22: 0.31 | H22: # | I22: =+I21+1 -> 4 | J22: @ | K22: =VLOOKUP(I22,BARtable,2)/M22*12 -> 6.486486486 | L22: Ctrs | M22: =+M21 -> 0.37 | O22: # | P22: =+P21+1 -> 4 | Q22: @ | R22: =VLOOKUP(P22,BARtable,2)/T22*12 -> 4.324324324 | S22: Ctrs | T22: =+M22/$Q$4*60 -> 0.555 | V22: =+X22 -> 4 | W22: X | X22: 4 | Y22: - | Z22: W | AA22: =+X22*AE22/12*100 -> 11.38461538 | AB22: X | AC22: W | AD22: =+AA22 -> 11.38461538 | AE22: =+M22/$X$4*60 -> 0.3415384615
B23: 6 | C23: 0.44 | H23: # | I23: =+I22+1 -> 5 | J23: @ | K23: =VLOOKUP(I23,BARtable,2)/M23*12 -> 10.05405405 | L23: Ctrs | M23: =+M22 -> 0.37 | O23: # | P23: =+P22+1 -> 5 | Q23: @ | R23: =VLOOKUP(P23,BARtable,2)/T23*12 -> 6.702702703 | S23: Ctrs | T23: =+M23/$Q$4*60 -> 0.555 | V23: =+X23 -> 6 | W23: X | X23: 6 | Y23: - | Z23: W | AA23: =+X23*AE23/12*100 -> 17.07692308 | AB23: X | AC23: W | AD23: =+AA23 -> 17.07692308 | AE23: =+M23/$X$4*60 -> 0.3415384615
B24: 7 | C24: 0.6 | Y24: -
B25: 8 | C25: 0.79 | F25: =VLOOKUP(M25,OLDSCHTABLE,2,0) -> D | G25: D | H25: # | I25: 4 | J25: @ | K25: =VLOOKUP(I25,BARtable,2)/M25*12 -> 4.528301887 | L25: Ctrs. | M25: =+VLOOKUP(G25,SCHEDULETABLE,2,0) -> 0.53 | O25: # | P25: =+I25 -> 4 | Q25: @ | R25: =VLOOKUP(P25,BARtable,2)/T25*12 -> 3.018867925 | S25: Ctrs. | T25: =+M25/$Q$4*60 -> 0.795 | V25: =+X25 -> 3 | W25: X | X25: 3 | Y25: - | Z25: W | AA25: =+X25*AE25/12*100 -> 12.23076923 | AB25: X | AC25: W | AD25: =+AA25 -> 12.23076923 | AE25: =+M25/$X$4*60 -> 0.4892307692
B26: 9 | C26: 1 | H26: # | I26: =+I25+1 -> 5 | J26: @ | K26: =VLOOKUP(I26,BARtable,2)/M26*12 -> 7.018867925 | L26: Ctrs | M26: =+M25 -> 0.53 | O26: # | P26: =+P25+1 -> 5 | Q26: @ | R26: =VLOOKUP(P26,BARtable,2)/T26*12 -> 4.679245283 | S26: Ctrs | T26: =+M26/$Q$4*60 -> 0.795 | V26: =+X26 -> 4 | W26: X | X26: 4 | Y26: - | Z26: W | AA26: =+X26*AE26/12*100 -> 16.30769231 | AB26: X | AC26: W | AD26: =+AA26 -> 16.30769231 | AE26: =+M26/$X$4*60 -> 0.4892307692
B27: 10 | C27: 1.27 | H27: # | I27: =+I26+1 -> 6 | J27: @ | K27: =VLOOKUP(I27,BARtable,2)/M27*12 -> 9.962264151 | L27: Ctrs | M27: =+M26 -> 0.53 | O27: # | P27: =+P26+1 -> 6 | Q27: @ | R27: =VLOOKUP(P27,BARtable,2)/T27*12 -> 6.641509434 | S27: Ctrs | T27: =+M27/$Q$4*60 -> 0.795 | V27: =+X27 -> 6 | W27: X | X27: 6 | Y27: - | Z27: W | AA27: =+X27*AE27/12*100 -> 24.46153846 | AB27: X | AC27: W | AD27: =+AA27 -> 24.46153846 | AE27: =+M27/$X$4*60 -> 0.4892307692
B28: 11 | C28: 1.56 | Y28: -
B29: 14 | C29: 2.25 | F29: =VLOOKUP(#REF!,OLDSCHTABLE,2,0) ->  | G29: E | H29: # | I29: 4 | J29: @ | K29: =VLOOKUP(I29,BARtable,2)/M29*12 -> 3.287671233 | L29: Ctrs. | M29: =+VLOOKUP(G29,SCHEDULETABLE,2,0) -> 0.73 | O29: # | P29: 5 | Q29: @ | R29: =VLOOKUP(P29,BARtable,2)/T29*12 -> 3.397260274 | S29: Ctrs. | T29: =+M29/$Q$4*60 -> 1.095 | V29: =+X29 -> 3 | W29: X | X29: 3 | Y29: - | Z29: W | AA29: =+X29*AE29/12*100 -> 16.84615385 | AB29: X | AC29: W | AD29: =+AA29 -> 16.84615385 | AE29: =+M29/$X$4*60 -> 0.6738461538
H30: # | I30: =+I29+1 -> 5 | J30: @ | K30: =VLOOKUP(I30,BARtable,2)/M30*12 -> 5.095890411 | L30: Ctrs | M30: =+M29 -> 0.73 | O30: # | P30: =+P29+1 -> 6 | Q30: @ | R30: =VLOOKUP(P30,BARtable,2)/T30*12 -> 4.821917808 | S30: Ctrs | T30: =+M30/$Q$4*60 -> 1.095 | V30: =+X30 -> 4 | W30: X | X30: 4 | Y30: - | Z30: W | AA30: =+X30*AE30/12*100 -> 22.46153846 | AB30: X | AC30: W | AD30: =+AA30 -> 22.46153846 | AE30: =+M30/$X$4*60 -> 0.6738461538
H31: # | I31: =+I30+1 -> 6 | J31: @ | K31: =VLOOKUP(I31,BARtable,2)/M31*12 -> 7.232876712 | L31: Ctrs | M31: =+M30 -> 0.73 | O31: # | P31: =+P30+1 -> 7 | Q31: @ | R31: =VLOOKUP(P31,BARtable,2)/T31*12 -> 6.575342466 | S31: Ctrs | T31: =+M31/$Q$4*60 -> 1.095 | V31: =+X31 -> 6 | W31: X | X31: 6 | Y31: - | Z31: W | AA31: =+X31*AE31/12*100 -> 33.69230769 | AB31: X | AC31: W | AD31: =+AA31 -> 33.69230769 | AE31: =+M31/$X$4*60 -> 0.6738461538
C32: OLD (2204) | Y32: -
B33: AREA | C33: SCHEDULE | F33: =VLOOKUP(M29,OLDSCHTABLE,2,0) -> E | G33: F | H33: # | I33: 5 | J33: @ | K33: =VLOOKUP(I33,BARtable,2)/M33*12 -> 3.509433962 | L33: Ctrs. | M33: =+VLOOKUP(G33,SCHEDULETABLE,2,0) -> 1.06 | O33: # | P33: 6 | Q33: @ | R33: =VLOOKUP(P33,BARtable,2)/T33*12 -> 3.320754717 | S33: Ctrs. | T33: =+M33/$Q$4*60 -> 1.59 | V33: =+X33 -> 3 | W33: X | X33: 3 | Y33: - | Z33: W | AA33: =+X33*AE33/12*100 -> 24.46153846 | AB33: X | AC33: W | AD33: =+AA33 -> 24.46153846 | AE33: =+M33/$X$4*60 -> 0.9784615385
B34: 0.2 | C34: A | H34: # | I34: =+I33+1 -> 6 | J34: @ | K34: =VLOOKUP(I34,BARtable,2)/M34*12 -> 4.981132075 | L34: Ctrs | M34: =+M33 -> 1.06 | O34: # | P34: =+P33+1 -> 7 | Q34: @ | R34: =VLOOKUP(P34,BARtable,2)/T34*12 -> 4.528301887 | S34: Ctrs | T34: =+M34/$Q$4*60 -> 1.59 | V34: =+X34 -> 4 | W34: X | X34: 4 | Y34: - | Z34: W | AA34: =+X34*AE34/12*100 -> 32.61538462 | AB34: X | AC34: W | AD34: =+AA34 -> 32.61538462 | AE34: =+M34/$X$4*60 -> 0.9784615385
B35: 0.24 | C35: B | H35: # | I35: =+I34+1 -> 7 | J35: @ | K35: =VLOOKUP(I35,BARtable,2)/M35*12 -> 6.79245283 | L35: Ctrs | M35: =+M34 -> 1.06 | O35: # | P35: =+P34+1 -> 8 | Q35: @ | R35: =VLOOKUP(P35,BARtable,2)/T35*12 -> 5.962264151 | S35: Ctrs | T35: =+M35/$Q$4*60 -> 1.59 | V35: =+X35 -> 6 | W35: X | X35: 6 | Y35: - | Z35: W | AA35: =+X35*AE35/12*100 -> 48.92307692 | AB35: X | AC35: W | AD35: =+AA35 -> 48.92307692 | AE35: =+M35/$X$4*60 -> 0.9784615385
B36: 0.37 | C36: C | Y36: -
B37: 0.53 | C37: D | F37: =VLOOKUP(#REF!,OLDSCHTABLE,2,0) ->  | G37: S2 | H37: # | I37: 5 | J37: @ | K37: =VLOOKUP(I37,BARtable,2)/M37*12 -> 3 | L37: Ctrs. | M37: =+VLOOKUP(G37,SCHEDULETABLE,2,0) -> 1.24 | O37: # | P37: 7 | Q37: @ | R37: =VLOOKUP(P37,BARtable,2)/T37*12 -> 3.870967742 | S37: Ctrs. | T37: =+M37/$Q$4*60 -> 1.86 | V37: =+X37 -> 3 | W37: X | X37: 3 | Y37: - | Z37: W | AA37: =+X37*AE37/12*100 -> 28.61538462 | AB37: X | AC37: W | AD37: =+AA37 -> 28.61538462 | AE37: =+M37/$X$4*60 -> 1.144615385
B38: 0.73 | C38: E | H38: # | I38: =+I37+1 -> 6 | J38: @ | K38: =VLOOKUP(I38,BARtable,2)/M38*12 -> 4.258064516 | L38: Ctrs | M38: =+M37 -> 1.24 | O38: # | P38: =+P37+1 -> 8 | Q38: @ | R38: =VLOOKUP(P38,BARtable,2)/T38*12 -> 5.096774194 | S38: Ctrs | T38: =+M38/$Q$4*60 -> 1.86 | V38: =+X38 -> 4 | W38: X | X38: 4 | Y38: - | Z38: W | AA38: =+X38*AE38/12*100 -> 38.15384615 | AB38: X | AC38: W | AD38: =+AA38 -> 38.15384615 | AE38: =+M38/$X$4*60 -> 1.144615385
B39: 1.06 | C39: F | H39: # | I39: =+I38+1 -> 7 | J39: @ | K39: =VLOOKUP(I39,BARtable,2)/M39*12 -> 5.806451613 | L39: Ctrs | M39: =+M38 -> 1.24 | O39: # | P39: =+P38+1 -> 9 | Q39: @ | R39: =VLOOKUP(P39,BARtable,2)/T39*12 -> 6.451612903 | S39: Ctrs | T39: =+M39/$Q$4*60 -> 1.86 | V39: =+X39 -> 6 | W39: X | X39: 6 | Y39: - | Z39: W | AA39: =+X39*AE39/12*100 -> 57.23076923 | AB39: X | AC39: W | AD39: =+AA39 -> 57.23076923 | AE39: =+M39/$X$4*60 -> 1.144615385
B40: 1.46 | C40: G | Y40: -
F41: =VLOOKUP(M33,OLDSCHTABLE,2,0) -> F | G41: G | H41: # | I41: 6 | J41: @ | K41: =VLOOKUP(I41,BARtable,2)/M41*12 -> 3.616438356 | L41: Ctrs. | M41: =+VLOOKUP(G41,SCHEDULETABLE,2,0) -> 1.46 | O41: # | P41: 7 | Q41: @ | R41: =VLOOKUP(P41,BARtable,2)/T41*12 -> 3.287671233 | S41: Ctrs. | T41: =+M41/$Q$4*60 -> 2.19 | V41: =+X41 -> 3 | W41: X | X41: 3 | Y41: - | Z41: W | AA41: =+X41*AE41/12*100 -> 33.69230769 | AB41: X | AC41: W | AD41: =+AA41 -> 33.69230769 | AE41: =+M41/$X$4*60 -> 1.347692308
H42: # | I42: =+I41+1 -> 7 | J42: @ | K42: =VLOOKUP(I42,BARtable,2)/M42*12 -> 4.931506849 | L42: Ctrs | M42: =+M41 -> 1.46 | O42: # | P42: =+P41+1 -> 8 | Q42: @ | R42: =VLOOKUP(P42,BARtable,2)/T42*12 -> 4.328767123 | S42: Ctrs | T42: =+M42/$Q$4*60 -> 2.19 | V42: =+X42 -> 4 | W42: X | X42: 4 | Y42: - | Z42: W | AA42: =+X42*AE42/12*100 -> 44.92307692 | AB42: X | AC42: W | AD42: =+AA42 -> 44.92307692 | AE42: =+M42/$X$4*60 -> 1.347692308
H43: # | I43: =+I42+1 -> 8 | J43: @ | K43: =VLOOKUP(I43,BARtable,2)/M43*12 -> 6.493150685 | L43: Ctrs | M43: =+M42 -> 1.46 | O43: # | P43: =+P42+1 -> 9 | Q43: @ | R43: =VLOOKUP(P43,BARtable,2)/T43*12 -> 5.479452055 | S43: Ctrs | T43: =+M43/$Q$4*60 -> 2.19 | V43: =+X43 -> 6 | W43: X | X43: 6 | Y43: - | Z43: W | AA43: =+X43*AE43/12*100 -> 67.38461538 | AB43: X | AC43: W | AD43: =+AA43 -> 67.38461538 | AE43: =+M43/$X$4*60 -> 1.347692308
Y44: -
F45: =VLOOKUP(M37,OLDSCHTABLE,2,0) ->  | G45: H | H45: # | I45: 7 | J45: @ | K45: =VLOOKUP(I45,BARtable,2)/M45*12 -> 4.114285714 | L45: Ctrs. | M45: =+VLOOKUP(G45,SCHEDULETABLE,2,0) -> 1.75 | O45: # | P45: =+I45 -> 7 | Q45: @ | R45: =VLOOKUP(P45,BARtable,2)/T45*12 -> 2.742857143 | S45: Ctrs. | T45: =+M45/$Q$4*60 -> 2.625 | V45: =+X45 -> 3 | W45: X | X45: 3 | Y45: - | Z45: W | AA45: =+X45*AE45/12*100 -> 40.38461538 | AB45: X | AC45: W | AD45: =+AA45 -> 40.38461538 | AE45: =+M45/$X$4*60 -> 1.615384615
H46: # | I46: =+I45+1 -> 8 | J46: @ | K46: =VLOOKUP(I46,BARtable,2)/M46*12 -> 5.417142857 | L46: Ctrs | M46: =+M45 -> 1.75 | O46: # | P46: =+P45+1 -> 8 | Q46: @ | R46: =VLOOKUP(P46,BARtable,2)/T46*12 -> 3.611428571 | S46: Ctrs | T46: =+M46/$Q$4*60 -> 2.625 | V46: =+X46 -> 4 | W46: X | X46: 4 | Y46: - | Z46: W | AA46: =+X46*AE46/12*100 -> 53.84615385 | AB46: X | AC46: W | AD46: =+AA46 -> 53.84615385 | AE46: =+M46/$X$4*60 -> 1.615384615
H47: # | I47: =+I46+1 -> 9 | J47: @ | K47: =VLOOKUP(I47,BARtable,2)/M47*12 -> 6.857142857 | L47: Ctrs | M47: =+M46 -> 1.75 | O47: # | P47: =+P46+1 -> 9 | Q47: @ | R47: =VLOOKUP(P47,BARtable,2)/T47*12 -> 4.571428571 | S47: Ctrs | T47: =+M47/$Q$4*60 -> 2.625 | V47: =+X47 -> 6 | W47: X | X47: 6 | Y47: - | Z47: W | AA47: =+X47*AE47/12*100 -> 80.76923077 | AB47: X | AC47: W | AD47: =+AA47 -> 80.76923077 | AE47: =+M47/$X$4*60 -> 1.615384615
F49: =VLOOKUP(M41,OLDSCHTABLE,2,0) -> G
F53: =VLOOKUP(M45,OLDSCHTABLE,2,0) -> 

Sheet Sheet3
